[Event "USA Championship Women 2022"]
[Site "Saint Louis"]
[Date "2022.10.07"]
[Round "3.2"]
[White "Foisor, Sabina-Francesca"]
[Black "Zatonskih, Anna"]
[Result "1/2-1/2"]
[ECO "D35"]
[WhiteElo "2203"]
[BlackElo "2368"]
[Annotator "TA"]
[PlyCount "79"]
[EventDate "2022.09.05"]
[EventType "tourn"]
[EventCountry "USA"]
[SourceTitle "playchess.com"]
[Source "ChessBase"]
[SourceQuality "1"]
[TimeControl "40/5400+30:1800+30"]

{[%evp 29,79,31,46,44,67,44,44,44,39,36,44,55,113,103,103,108,111,108,148,139,144,82,100,106,119,70,63,2,27,20,18,17,22,23,10,9,12,20,16,11,31,8,20,8,28,0,0,0,24,0,8,0]} 1. d4 {[%emt 0:00:03]} d5 {[%emt 0:00:13]} 2. c4 {[%emt 0:00:07]} e6 {[%emt 0:00:15]} 3. Nc3 {[%emt 0:00:12]} Nf6 {[%emt 0:01:46]} 4. Nf3 {[%emt 0:03:20]} Be7 {[%emt 0:00:36]} 5. cxd5 {[%emt 0:03:25]} exd5 {[%emt 0:00:32]} 6. Bf4 {[%emt 0:00:04]} c6 {[%emt 0:09:52]} 7. h3 {[%emt 0:00:29]} Nbd7 {[%emt 0:21:40][%cal Bb8d7,Bd7f8,Bf8g6][%mdl 32]} 8. e3 {[%emt 0:01:49]} O-O {[%emt 0:02:16]} 9. Bd3 {[%emt 0:00:15]} Re8 {[%emt 0:01:10]} 10. O-O {[%emt 0:01:09]} Nf8 {[%emt 0:13:54]} 11. Qc2 {[%emt 0:04:04]} Ng6 {[%emt 0:01:26]} 12. Bh2 {[%emt 0:00:56]} Bd6 {[%emt 0:01:09]} 13. Bxd6 {[%emt 0:00:33]} Qxd6 {[%emt 0:00:01]} 14. Rab1 {[%emt 0:00:06]} Bd7 {[%emt 0:08:53]} 15. b4 {[%emt 0:05:25]} a6 {[%emt 0:00:33]} 16. Na4 {[%emt 0:07:55] [#] D35: Queen's Gambit Declined: Exchange Variation.} Qe7 $146 {[%emt 0:12:38]} ({Predecessor:} 16... Rad8 17. Nc5 Bc8 18. a4 Nd7 19. Bf5 Qf6 20. Bxd7 Bxd7 21. Nxd7 Rxd7 22. b5 axb5 23. axb5 h6 {1-0 (38) Banusz,T (2611)-Materia,M (2409) Biel 2022}) 17. Nc5 {[%emt 0:06:23] White is more active.} Bc8 {[%emt 0:00:07]} 18. a4 {[%emt 0:14:07] White is slightly better.} Ne4 {[%emt 0:01:27]} 19. b5 {[%emt 0:02:33]} axb5 {[%emt 0:00:05]} 20. axb5 {[%emt 0:00:03]} f5 {[%emt 0:05:19]} (20... Nxc5 $14 21. Qxc5 (21. dxc5 Qf6 $14) 21... Qxc5 22. dxc5 Nf8) 21. bxc6 {[%emt 0:21:02]} bxc6 {[%emt 0:00:01]} 22. Ra1 {[%emt 0:00:06]} Rxa1 {[%emt 0:01:53]} 23. Rxa1 {[%emt 0:00:01]} Qc7 {[%emt 0:02:43]} 24. Ra8 {[%emt 0:03:25]} Bd7 {[%emt 0:01:13]} 25. Qa2 {[%emt 0:03:17]} (25. Ra2 $142) 25... Rxa8 {[%emt 0:01:41]} 26. Qxa8+ {[%emt 0:00:05]} Qc8 {[%emt 0:00:23]} 27. Qxc8+ {[%emt 0:10:36]} (27. Qa7 $16 Nxc5 28. dxc5 (28. Qxc5 Nh8 $16)) 27... Bxc8 $14 {[%emt 0:00:01]} 28. Bxe4 {[%emt 0:00:33]} (28. Bc2 $14) 28... dxe4 $16 {[%emt 0:01:43][%mdl 4096] Endgame KBN-KNN} 29. Nd2 {[%emt 0:01:41]} Kf7 {[%emt 0:00:24]} 30. g4 {[%emt 0:02:05]} fxg4 {[%emt 0:01:39]} 31. Ndxe4 {[%emt 0:00:26] [#] Hoping for Nd6+. Pair of Knights!} Ke7 {[%emt 0:00:27] Against Nd6} 32. hxg4 {[%emt 0:03:33]} Bxg4 {[%emt 0:00:01]} 33. Kg2 {[%emt 0:00:07]} h5 {[%emt 0:02:40]} 34. Kg3 {[%emt 0:01:45]} Bc8 {[%emt 0:03:06]} 35. f3 {[%emt 0:01:56]} Bf5 {[%emt 0:01:03]} 36. Ng5 {[%emt 0:00:08]} Kf6 {[%emt 0:01:52]} 37. Nh7+ {[%emt 0:00:12]} (37. f4 $5 {[%cal Re3e4]}) 37... Ke7 {[%emt 0:00:02]} 38. Ng5 {[%emt 0:00:33]} Kf6 {[%emt 0:00:01]} 39. Nh7+ {[%emt 0:01:40]} Ke7 {[%emt 0:00:01]} 40. Ng5 {[%emt 0:03:00] Weighted Error Value: White=0.17 (very precise) /Black=0.10 (very precise)} 1/2-1/2

[Event "USA Championship Women 2022"]
[Site "Saint Louis"]
[Date "2022.10.07"]
[Round "3.3"]
[White "Yan, Ruiyang"]
[Black "Morris-Suzuki, Sophie"]
[Result "1-0"]
[ECO "B80"]
[WhiteElo "2220"]
[BlackElo "2126"]
[Annotator "TA"]
[PlyCount "127"]
[EventDate "2022.09.05"]
[EventType "tourn"]
[EventCountry "USA"]
[SourceTitle "playchess.com"]
[Source "ChessBase"]
[SourceQuality "1"]
[TimeControl "40/5400+30:1800+30"]

{[%evp 16,127,44,46,31,36,53,45,44,43,48,39,59,56,60,31,84,70,70,70,70,70,72,66,70,67,55,51,76,66,68,64,66,31,33,15,80,80,80,76,147,141,141,142,142,142,142,142,142,142,142,100,109,106,319,314,314,309,308,307,255,118,118,119,118,114,109,115,243,254,243,248,230,179,2272,564,1802,1583,1259,1225,2569,2562,12833,12835,12835,12836,12836,12837,12837,12835,12840,12841,12841,12841,12841,12842,12841,12842,12842,12843,12844,12843,12845,12845,12845,12846,12846,12847,12848,12849,29990,12848,12849,12849]} 1. e4 {[%emt 0:00:04]} c5 {[%emt 0:00:08]} 2. Nf3 {[%emt 0:00:14]} e6 {[%emt 0:00:08]} 3. d4 {[%emt 0:00:06]} cxd4 {[%emt 0:00:08]} 4. Nxd4 {[%emt 0:00:06]} Nf6 {[%emt 0:00:11]} 5. Nc3 {[%emt 0:00:40]} d6 {[%emt 0:00:08]} 6. Be3 {[%emt 0:05:32]} a6 {[%emt 0:00:31]} 7. f3 {[%emt 0:03:16]} b5 {[%emt 0:00:53]} 8. Qd2 {[%emt 0:05:46]} Bb7 {[%emt 0:03:51]} 9. a4 {[%emt 0:14:29]} b4 {[%emt 0:15:04] B80: Sicilian Scheveningen: 6 g3 and 6 Be3, including English Attack.} 10. Na2 {[%emt 0:06:03]} d5 {[%emt 0:00:13]} 11. e5 {[%emt 0:01:27]} (11. Nxb4 dxe4 12. Be2 Nbd7 $15) 11... Nfd7 {[%emt 0:00:03] White is slightly better.} 12. f4 $1 {[%emt 0:08:00]} Nc5 {[%emt 0:01:47]} 13. Bd3 {[%emt 0:01:07]} (13. Nxb4 $2 Ne4 14. Qd1 Bxb4+ $19) 13... Nxd3+ {[%emt 0:13:58] [#]} 14. cxd3 $146 {[%emt 0:02:24]} ({Predecessor:} 14. Qxd3 Nd7 15. O-O g6 16. Qe2 Rc8 17. f5 Nc5 18. fxe6 Nxe6 19. Nxe6 fxe6 20. Qg4 Rxc2 21. Nxb4 {0-1 (33) Kazmierowski,T (1996)-Baum,J (2308) Pokrzywna 2020}) 14... Nc6 {[%emt 0:07:04]} 15. Nc1 {[%emt 0:05:45]} Na5 {[%emt 0:14:35]} (15... Nxd4 $14 16. Bxd4 Be7) 16. O-O {[%emt 0:09:35]} Bc5 {[%emt 0:02:40]} 17. Ncb3 {[%emt 0:07:10]} Nxb3 {[%emt 0:07:46]} 18. Nxb3 {[%emt 0:00:06]} Be7 {[%emt 0:02:50]} 19. Bd4 {[%emt 0:02:57]} O-O {[%emt 0:08:27]} 20. Qf2 {[%emt 0:09:49]} Bc6 {[%emt 0:02:59]} 21. Bc5 {[%emt 0:04:43]} Bxc5 {[%emt 0:01:58]} 22. Qxc5 {[%emt 0:00:24]} Qd7 {[%emt 0:00:50]} 23. Qd4 {[%emt 0:02:02]} a5 {[%emt 0:04:19]} (23... Bxa4 $2 24. Nc5 (24. Qxb4 Bxb3 25. Qxb3 Qa7+ 26. Rf2 Rab8 $15) 24... Qb5 25. Nxa4 $18 (25. Rxa4 Rfc8 $11)) 24. Rfc1 {[%emt 0:01:48]} Rfc8 {[%emt 0:00:21]} (24... Bxa4 $2 25. Nc5 Qb5 26. Nxa4 $18) 25. Nc5 {[%emt 0:03:38]} Qa7 {[%emt 0:00:34]} (25... Qd8 $1 $11) 26. Qf2 $16 {[%emt 0:00:30]} Qe7 {[%emt 0:06:33]} 27. d4 {[%emt 0:00:09]} b3 {[%emt 0:01:10]} (27... Bd7 $142) 28. Qd2 {[%emt 0:01:07]} Qe8 {[%emt 0:01:31]} 29. Nxb3 {[%emt 0:01:02]} Bxa4 {[%emt 0:00:19]} 30. Rxc8 {[%emt 0:00:07]} ({Resist} 30. Nxa5 Rxc1+ 31. Rxc1 Qb8 $14) 30... Rxc8 {[%emt 0:00:12]} 31. Nc5 {[%emt 0:00:05]} ({Don't play} 31. Nxa5 $6 Rb8 $14) 31... Bc6 {[%emt 0:02:58]} 32. Rxa5 {[%emt 0:00:11] White is much more active.} Qd8 {[%emt 0:00:24]} 33. b3 {[%emt 0:02:53]} Ra8 {[%emt 0:00:47]} 34. b4 {[%emt 0:01:31]} Qb6 $2 {[%emt 0:00:45] [#]} (34... h5 $16 35. Qc3 Qb6) 35. Rxa8+ $1 $18 Bxa8 {[%emt 0:00:01][%mdl 4096] Endgame [#] KQB-KQN} 36. Qa2 $1 {[%emt 0:00:52]} Bc6 {[%emt 0:01:17]} 37. Qa5 {[%emt 0:00:36]} Qb8 {[%emt 0:00:53]} 38. h3 {[%emt 0:01:16]} (38. Na6 $18 {and White stays clearly on top.} Qc8 39. g3) 38... h5 $16 {[%emt 0:00:17]} 39. Kf2 {[%emt 0:00:31]} Bb5 {[%emt 0:00:35]} 40. g4 {[%emt 0:01:00]} hxg4 {[%emt 0:00:12]} 41. hxg4 {[%emt 0:30:05]} Qe8 {[%emt 0:02:55]} (41... g6 $16 {was necessary.} 42. Qa3 Kg7) 42. Qb6 $18 {[%emt 0:00:00]} Bc4 {[%emt 0:01:31]} 43. Kg3 {[%emt 0:00:00]} Kh7 {[%emt 0:03:35]} 44. Qc7 {[%emt 0:00:00] Threatens to win with Qd7.} Kg6 $2 {[%emt 0:02:53]} (44... Bb5 45. Nb7 Bd3) 45. Qd7 {[%emt 0:00:00]} (45. Nb7 $142 {Nd6 is the strong threat.} Kh7 46. Nd6) 45... Qxd7 {[%emt 0:06:12]} 46. Nxd7 {[%emt 0:00:00] KB-KN} f6 {[%emt 0:00:15]} 47. Nb6 {[%emt 0:00:00]} Be2 {[%emt 0:03:54]} 48. Nc8 {[%emt 0:00:00] Black must now prevent Nd6.} fxe5 {[%emt 0:04:19]} 49. fxe5 {[%emt 0:00:00] White threatens Nd6 and mate.} Kf7 {[%emt 0:01:20]} 50. b5 {[%emt 0:00:00][%cal Bb4b5,Bb5b6][%mdl 32]} Ke8 {[%emt 0:00:05]} 51. b6 {[%emt 0:00:00] White wants to mate with b7.} Kd7 {[%emt 0:01:08]} 52. Nd6 {[%emt 0:00:00]} Ba6 {[%emt 0:04:41]} 53. b7 {[%emt 0:00:00]} Kc7 {[%emt 0:00:07]} 54. Ne8+ {[%emt 0:00:00]} Kxb7 {[%emt 0:00:56]} 55. Nxg7 {[%emt 0:00:00]} Kc6 {[%emt 0:00:44]} 56. Nxe6 {[%emt 0:00:00]} Bd3 {[%emt 0:00:50]} 57. Kf4 {[%emt 0:00:00]} Be2 {[%emt 0:02:13]} 58. Nc5 {[%emt 0:00:00]} Kc7 {[%emt 0:00:32]} 59. g5 {[%emt 0:00:00][%cal Bg4g5,Bg5g6][%mdl 32]} Kd8 {[%emt 0:00:57]} 60. e6 {[%emt 0:00:00] Intending g6 and mate.} Ke7 {[%emt 0:00:49]} 61. Ke5 {[%emt 0:00:00]} Bf3 {[%emt 0:00:48]} 62. g6 {[%emt 0:00:00] g7 would kill now.} Kf8 {[%emt 0:00:12]} 63. Kf6 {[%emt 0:00:00]} (63. Nd7+ $142 Kg7 64. e7 Kh6 65. Kf4 Kh5 66. g7 Kh6 67. g8=Q Be4 68. Nf6 Bh1 69. Qh7#) 63... Bh5 {[%emt 0:00:27]} 64. Nd3 {[%emt 0:00:00] Weighted Error Value: White=0.20 (precise) /Black=0.21 (precise)} 1-0

[Event "USA Championship Women 2022"]
[Site "Saint Louis"]
[Date "2022.10.07"]
[Round "3.4"]
[White "Eswaran, Ashritha"]
[Black "Paikidze, Nazi"]
[Result "1/2-1/2"]
[ECO "B11"]
[WhiteElo "2365"]
[BlackElo "2354"]
[Annotator "TA"]
[PlyCount "96"]
[EventDate "2022.09.05"]
[EventType "tourn"]
[EventCountry "USA"]
[SourceTitle "playchess.com"]
[Source "ChessBase"]
[SourceQuality "1"]
[TimeControl "40/5400+30:1800+30"]

{[%evp 13,96,23,23,26,25,25,24,20,27,25,40,29,37,24,27,27,19,5,11,0,0,0,0,0,17,16,19,15,9,12,29,11,20,11,8,7,6,0,0,0,0,0,7,0,0,0,0,0,0,0,0,0,0,0,0,0,0,0,0,0,0,0,0,0,0,0,0,0,0,0,0,0,0,0,0,0,0,0,0,0,0,0,0,0,0]} 1. e4 {[%emt 0:00:09]} c6 {[%emt 0:00:06]} 2. Nc3 {[%emt 0:00:23]} d5 {[%emt 0:00:08]} 3. Nf3 {[%emt 0:00:25]} Bg4 {[%emt 0:00:17]} 4. h3 {[%emt 0:00:19]} Bxf3 {[%emt 0:00:13]} 5. Qxf3 {[%emt 0:00:08]} e6 {[%emt 0:00:05]} 6. Be2 {[%emt 0:00:44]} Nf6 {[%emt 0:01:51]} 7. O-O {[%emt 0:00:42]} Nbd7 {[%emt 0:01:08]} 8. d4 {[%emt 0:01:17] B11: Caro-Kann: Two Knights Variation.} dxe4 {[%emt 0:00:54]} 9. Nxe4 {[%emt 0:00:09]} Nxe4 {[%emt 0:00:59]} 10. Qxe4 {[%emt 0:00:09] White has an edge.} Nf6 {[%emt 0:00:36]} 11. Qd3 {[%emt 0:00:49]} Qc7 {[%emt 0:03:41]} 12. Rd1 {[%emt 0:02:23]} Be7 {[%emt 0:01:14]} 13. a4 {[%emt 0:09:02]} a5 {[%emt 0:04:15] [#]} 14. Bd2 $146 {[%emt 0:01:45]} ({Predecessor:} 14. c4 O-O 15. Qf3 Rad8 16. b3 Rd7 17. Bb2 Rfd8 18. Bd3 {½-½ (18) Strbac,M (2292)-Sljukic,M (2188) Kovacica 2019}) 14... O-O {[%emt 0:06:13]} 15. Be1 {[%emt 0:04:08]} Rfd8 {[%emt 0:11:10]} 16. Qc4 {[%emt 0:09:06]} Rd7 {[%emt 0:04:49]} 17. Bf3 {[%emt 0:04:07]} Rad8 {[%emt 0:03:16]} 18. c3 {[%emt 0:03:26]} e5 {[%emt 0:02:20]} 19. dxe5 {[%emt 0:01:41]} Qxe5 {[%emt 0:03:01] [#] ...Rxd1 is the strong threat.} 20. Qe2 {[%emt 0:03:00]} Qxe2 {[%emt 0:13:58]} 21. Bxe2 {[%emt 0:00:07]} Nd5 {[%emt 0:08:02]} 22. g3 {[%emt 0:04:57]} Bf6 {[%emt 0:01:33] The position is equal.} 23. Bf3 {[%emt 0:09:17]} Nb6 {[%emt 0:04:24][%cal Bd5b6,Bb6d7,Bd7e5,Be5d3][%mdl 32]} 24. Rxd7 {[%emt 0:01:29]} Nxd7 {[%emt 0:05:36]} 25. Ra2 {[%emt 0:10:51]} Ne5 {[%emt 0:07:45]} 26. Be2 {[%emt 0:01:12]} Nd3 {[%emt 0:00:45]} 27. Bxd3 {[%emt 0:01:11]} Rxd3 $11 {[%emt 0:00:01][%mdl 4096] Endgame KRB-KRB} 28. Ra3 {[%emt 0:00:09]} Be7 {[%emt 0:03:54]} 29. Ra1 {[%emt 0:02:06]} f5 {[%emt 0:02:32]} 30. Kf1 {[%emt 0:00:34]} Kf7 {[%emt 0:00:42]} 31. Ke2 {[%emt 0:00:05]} Rd7 {[%emt 0:00:51]} 32. b4 {[%emt 0:03:21]} axb4 {[%emt 0:01:48]} 33. cxb4 {[%emt 0:00:07]} Bf6 {[%emt 0:01:47]} 34. Rc1 {[%emt 0:02:30]} Rd5 {[%emt 0:01:34]} 35. a5 {[%emt 0:03:44]} Re5+ {[%emt 0:00:39]} 36. Kf1 {[%emt 0:01:06]} Rb5 {[%emt 0:01:07]} 37. a6 {[%emt 0:00:47]} bxa6 {[%emt 0:00:06]} 38. Rxc6 {[%emt 0:00:06]} Be7 $1 {[%emt 0:00:23]} 39. Rxa6 {[%emt 0:02:07] Threatens to win with Ra5.} Bxb4 {[%emt 0:00:22]} 40. Bxb4 {[%emt 0:00:21]} Rxb4 {[%emt 0:00:03] KR-KR} 41. Ke2 {[%emt 0:30:21]} Rb3 {[%emt 0:30:42]} 42. h4 {[%emt 0:01:16]} h5 {[%emt 0:00:45]} 43. Kf1 {[%emt 0:00:14]} g6 {[%emt 0:00:37]} 44. Kg2 {[%emt 0:00:09]} Rc3 {[%emt 0:00:14]} 45. Rb6 $1 {[%emt 0:00:07]} Rd3 {[%emt 0:00:12]} 46. Ra6 {[%emt 0:00:12]} Rc3 {[%emt 0:00:04]} 47. Rb6 {[%emt 0:00:08]} Rd3 {[%emt 0:00:02]} 48. Ra6 $1 {[%emt 0:00:09]} Rc3 {[%emt 0:00:08] Weighted Error Value: White=0.03 (flawless) /Black=0.02 (flawless)} 1/2-1/2

[Event "USA Championship Women 2022"]
[Site "Saint Louis"]
[Date "2022.10.07"]
[Round "3.5"]
[White "Tokhirjonova, Gulrukhbegim"]
[Black "Wu, Rochelle"]
[Result "1-0"]
[ECO "B23"]
[WhiteElo "2336"]
[BlackElo "2317"]
[Annotator "TA"]
[PlyCount "147"]
[EventDate "2022.09.05"]
[EventType "tourn"]
[EventCountry "USA"]
[SourceTitle "playchess.com"]
[Source "ChessBase"]
[SourceQuality "1"]
[TimeControl "40/5400+30:1800+30"]

{[%evp 9,147,-24,-17,-7,-12,-25,0,-1,11,33,29,44,90,111,108,110,175,164,184,191,226,210,224,230,240,219,238,97,92,97,96,13,258,236,273,288,547,518,669,700,1037,1071,1258,1181,1249,1164,1238,1099,1063,78,79,78,66,67,85,0,0,0,43,42,42,0,0,0,29,38,38,29,33,30,30,29,35,30,53,67,159,162,147,145,155,135,240,208,255,249,214,165,277,179,205,206,182,71,71,71,71,71,71,71,71,72,72,72,71,79,72,72,217,171,164,97,97,97,202,189,189,143,4105,2037,9076,8485,7350,625,353,266,12823,6069,5080,5409,29981,29982,29985,29986,29986,29987,29987,29988,29988,29983]} 1. e4 {[%emt 0:01:55]} c5 {[%emt 0:00:29]} 2. Nc3 {[%emt 0:00:22]} d6 {[%emt 0:00:36]} 3. f4 {[%emt 0:00:20]} g6 {[%emt 0:00:37]} 4. Bb5+ {[%emt 0:01:17]} Bd7 {[%emt 0:02:12]} 5. Bc4 {[%emt 0:01:30]} Bg7 {[%emt 0:02:02]} 6. Nf3 {[%emt 0:00:53] B23: Closed Sicilian: Lines without g3.} Nc6 {[%emt 0:02:12]} 7. d3 {[%emt 0:00:57]} e6 {[%emt 0:01:44]} 8. f5 {[%emt 0:02:58] The position is equal.} Nd4 {[%emt 0:16:35]} 9. fxe6 {[%emt 0:13:00]} fxe6 {[%emt 0:01:06] [#]} 10. O-O $146 {[%emt 0:05:13][%cal Oe4e5]} ({Predecessor:} 10. Nxd4 cxd4 11. Ne2 Qh4+ 12. g3 Qh5 13. Qd2 b5 14. Bb3 Nh6 15. O-O Ng4 16. Nf4 {1-0 (55) Kosteniuk,A (2510)-Brailly Vignal,B (2361) Chartres 2022}) 10... Qb6 {[%emt 0:05:56]} (10... Nh6 $14 {deserves consideration.}) 11. Ng5 {[%emt 0:07:33]} Nf6 {[%emt 0:03:58]} 12. Ne2 {[%emt 0:05:26]} Nxe2+ {[%emt 0:33:22]} (12... d5 $16) 13. Qxe2 $18 {[%emt 0:00:26]} e5 {[%emt 0:00:13]} 14. a4 {[%emt 0:09:50][%cal Ba2a4,Ba4a5][%mdl 32]} (14. Ne6 Bxe6 15. Bxe6 h6) 14... Ke7 {[%emt 0:01:11]} 15. a5 {[%emt 0:03:53]} Qc7 {[%emt 0:00:20]} 16. b4 {[%emt 0:08:23]} Raf8 {[%emt 0:10:24]} 17. bxc5 {[%emt 0:02:20]} dxc5 {[%emt 0:00:06]} 18. d4 {[%emt 0:10:01]} (18. Nf3 $18) 18... h6 $16 {[%emt 0:02:42]} 19. Nf3 $36 {[%emt 0:03:33][%mdl 2048] White is on the roll. White is more active.} exd4 {[%emt 0:02:31]} 20. Nh4 {[%emt 0:00:54]} (20. a6 $16 {Hoping for e5.} Ng4 21. e5) 20... Be8 $2 {[%emt 0:02:46]} (20... Ng4 $11 21. Nxg6+ Kd8) 21. Bf4 $1 $18 {[%emt 0:01:36][%cal Bc1f4,Bf4b8,Bb8a7,Ba7b6][%mdl 32]} (21. e5 Nd7 $14) 21... Qd7 {[%emt 0:02:12]} 22. Bb8 {[%emt 0:05:49]} Nh5 $2 {[%emt 0:01:41]} (22... Ng4 {was called for.}) 23. Bxa7 {[%emt 0:02:09]} Qd6 {[%emt 0:01:51]} 24. Rab1 {[%emt 0:01:40]} Rxf1+ {[%emt 0:01:53]} 25. Qxf1 {[%emt 0:00:26]} Be5 {[%emt 0:00:57]} 26. Rxb7+ {[%emt 0:00:43]} Kd8 {[%emt 0:01:08]} 27. Nf3 {[%emt 0:00:51]} Rf8 {[%emt 0:00:16]} 28. Bb6+ {[%emt 0:01:09]} Kc8 {[%emt 0:00:12] [#]} 29. Ba6 $2 {[%emt 0:01:25]} (29. Qb1 $1 $18 {and White stays clearly on top. Threatening mate with Ba6.} Rxf3 30. Rc7+ Qxc7 31. Bxc7 Bxc7 32. gxf3) 29... Bxh2+ $16 {[%emt 0:00:46]} 30. Nxh2 {[%emt 0:01:39][%cal Of1f8]} Rxf1+ {[%emt 0:00:03]} 31. Nxf1 {[%emt 0:00:07] Dancing on a razor blade.} Bd7 {[%emt 0:00:59]} 32. Nd2 {[%emt 0:04:53]} (32. Rc7+ $1 $16 Kb8 33. Rxc5) 32... d3 $11 {[%emt 0:01:02]} 33. c3 {[%emt 0:02:43]} Ng3 {[%emt 0:00:45][%cal Oc5c4]} 34. Ra7+ {[%emt 0:00:57][%mdl 1024] White has compensation.} Kb8 {[%emt 0:00:05]} 35. Rb7+ {[%emt 0:00:06]} Kc8 {[%emt 0:00:04]} 36. Ra7+ {[%emt 0:00:46]} Kb8 {[%emt 0:00:01]} 37. Bc7+ {[%emt 0:00:37] This bishop pair is nice.} Kxa7 {[%emt 0:00:14]} 38. Bxd6 {[%emt 0:00:03]} Ne2+ {[%emt 0:00:05]} 39. Kf2 {[%emt 0:00:05]} Kxa6 {[%emt 0:00:03][%mdl 4096] Endgame KBN-KBN} 40. c4 $1 {[%emt 0:01:03]} Kxa5 {[%emt 0:00:31]} 41. Bxc5 {[%emt 0:30:19]} h5 {[%emt 0:06:33]} 42. Ke3 {[%emt 0:00:00]} Ka4 {[%emt 0:03:51]} (42... Be6 $14) 43. Bd6 $16 {[%emt 0:00:00]} ({Don't play} 43. Kxd3 $6 Nf4+ 44. Kc3 Nxg2 $14) 43... Nc1 {[%emt 0:06:23]} 44. Nf3 $1 {[%emt 0:00:00]} Be6 {[%emt 0:05:47]} 45. Kd2 {[%emt 0:00:00]} Nb3+ {[%emt 0:01:03]} (45... Ne2 $16) 46. Kxd3 $18 {[%emt 0:00:00]} Na5 {[%emt 0:00:19]} 47. Ne5 {[%emt 0:00:00]} g5 {[%emt 0:00:05]} 48. Be7 {[%emt 0:00:00]} g4 {[%emt 0:00:07]} (48... Kb3 $142 49. Kd4 (49. Bxg5 Nxc4 50. Nc6 Bg8 $16) 49... g4) 49. Kd4 {[%emt 0:00:00]} Nb3+ {[%emt 0:00:07]} 50. Kc3 {[%emt 0:00:00] Strongly threatening Nd3.} Nc1 {[%emt 0:01:22]} 51. Nd3 {[%emt 0:00:00]} (51. Bg5 $18 Na2+ 52. Kd4) 51... Nxd3 $16 {[%emt 0:01:00]} 52. Kxd3 {[%emt 0:00:00] KB-KB} Ka5 {[%emt 0:06:05]} 53. Kd4 {[%emt 0:00:00]} Kb6 {[%emt 0:00:04]} 54. c5+ {[%emt 0:00:00]} Kc6 {[%emt 0:00:04]} 55. g3 {[%emt 0:00:00]} Ba2 {[%emt 0:02:06]} 56. Ke3 {[%emt 0:00:00]} Kd7 {[%emt 0:02:01]} 57. Bd6 {[%emt 0:00:00]} Bf7 {[%emt 0:00:37]} 58. Kf4 {[%emt 0:00:00]} Ke6 {[%emt 0:00:09]} (58... Kc6 $16) 59. Kg5 $1 $18 {[%emt 0:00:00]} Be8 {[%emt 0:01:43]} 60. Bf4 {[%emt 0:00:00]} Ke7 {[%emt 0:01:23]} 61. Kf5 {[%emt 0:00:00] Threatens to win with Bd6+.} Bd7+ {[%emt 0:00:02]} 62. Ke5 {[%emt 0:00:00]} Bc6 {[%emt 0:00:05]} 63. Bg5+ $1 {[%emt 0:00:00]} Kd7 $2 {[%emt 0:00:02][%mdl 8192]} (63... Kf7 $16 64. Kd6 Bxe4) 64. Kf5 $1 {[%emt 0:00:00] Black must now prevent e5.} Bb7 {[%emt 0:02:30] [#]} 65. e5 $1 {[%emt 0:00:00]} Kc6 {[%emt 0:01:43]} 66. Be7 {[%emt 0:00:55]} (66. Kf6 $142 Kxc5 67. e6) 66... Kd5 {[%emt 0:01:09] [#]} 67. Bd6 $1 {[%emt 0:00:54] And now Kf6 would win.} h4 $2 {[%emt 0:01:07]} (67... Bc8+ 68. Kg5 Ke6 69. Kxh5 Kf7) 68. gxh4 {[%emt 0:01:24][%cal Bg3h4,Bh4h5,Bh5h6][%mdl 32]} g3 {[%emt 0:00:05]} 69. e6 {[%emt 0:00:06] Kf6 would kill now.} g2 {[%emt 0:00:17]} 70. Bh2 {[%emt 0:00:05] White mates.} Kxc5 {[%emt 0:00:40]} 71. h5 {[%emt 0:00:28]} Ba6 {[%emt 0:01:08]} 72. h6 {[%emt 0:01:01]} Kc6 {[%emt 0:00:16]} 73. Kf6 {[%emt 0:00:08]} Bd3 {[%emt 0:00:10]} 74. Kf7 {[%emt 0:00:06] Weighted Error Value: White=0.28 (precise) /Black=0.42} 1-0